bitfinex-derivatives/quotes_SOLF0:USTF0_20250130
["timestamp","ask_amount","ask_price","bid_price","bid_amount"]
[1738201654297,4.29463539,234.58,234.53,4.264]
[1738201655794,0.03153539,234.58,234.57,4.2633]
[1738201655997,1.4374,234.65,234.51,11.75904974]
[1738201656196,0.03174491,234.6,234.51,11.75904974]
[1738201656401,0.03174491,234.6,234.59,4.2629]
[1738201658097,4.2633,234.57,234.51,4.2642]
[1738201658298,11.75904974,234.58,234.43,11.75904974]
[1738201658904,0.03108203,234.53,234.5,4.2645]
[1738201660200,0.03108203,234.53,234.43,11.75904974]
[1738201660400,0.03108203,234.53,234.52,4.2642]
[1738201661795,0.03108203,234.53,234.51,4.2643]
[1738201664102,0.03108203,234.53,234.46,11.75904974]
[1738201664309,0.03108203,234.53,234.52,4.2642]
[1738201667413,0.03108203,234.53,234.49,10.32063383]
[1738201668115,0.03108203,234.53,234.52,4.2642]
[1738201670614,4.2622,234.64,234.52,11.75904974]
[1738201671010,1.37,234.66,234.52,11.75904974]
[1738201671213,4.2618,234.65,234.52,11.75904974]
[1738201671814,0.02714989,234.61,234.56,0.03184672]
[1738201672119,0.02714989,234.61,234.58,4.2629]
[1738201672517,0.02714989,234.61,234.56,0.03184672]
[1738201672712,0.02714989,234.61,234.59,4.2629]
[1738201673512,0.02714989,234.61,234.56,0.03184672]
[1738201673818,11.75904974,234.74,234.58,11.75904974]
[1738201674211,11.75904974,234.84,234.68,11.75904974]
[1738201674419,23.5788778,234.85,234.71,11.75904974]
[1738201674814,0.03033025,234.8,234.76,0.03028889]
[1738201675321,0.03033025,234.8,234.77,4.2595]
[1738201675820,0.03033025,234.8,234.76,0.03028889]
[1738201676218,0.03033025,234.8,234.78,4.2594]
[1738201676418,0.03033025,234.8,234.76,0.03028889]
[1738201676618,0.03033025,234.8,234.77,4.2596]
[1738201676824,0.03033025,234.8,234.76,0.03028889]
[1738201678223,148.47397997,235.07,234.78,18.7996551]
[1738201678422,148.47397997,235.07,234.74,18.7996551]
[1738201678423,4.2445,234.99,234.74,18.7996551]
[1738201678619,18.7996551,234.92,234.74,18.7996551]
[1738201679121,4.2577,234.88,234.76,4.2598]
[1738201679315,0.03181576,234.85,234.81,0.03142425]
[1738201680117,4.29011576,234.85,234.81,0.03142425]
[1738201681622,4.2587,234.82,234.81,0.03142425]
[1738201683822,0.03181576,234.85,234.81,0.03142425]
[1738201683823,4.2586,234.83,234.81,0.03142425]
[1738201686324,4.2586,234.83,234.61,90.93222185]
[1738201686325,18.7996551,234.83,234.61,90.93222185]
[1738201686519,4.2601,234.75,234.69,4.2611]
[1738201686725,18.7996551,234.83,234.62,2.8621]
[1738201686927,4.2603,234.74,234.68,4.2613]
[1738201687427,4.2612,234.69,234.62,7.1244]
[1738201687626,4.2612,234.69,234.62,5.7313]
[1738201687828,0.02754257,234.68,234.63,0.03058449]
[1738201688321,0.02754257,234.68,234.63,4.29278449]
[1738201689221,0.02754257,234.68,234.63,0.03058449]
[1738201689426,0.02754257,234.68,234.66,4.2615]
[1738201690129,0.02754257,234.68,234.63,1.47378449]
[1738201690130,0.02754257,234.68,234.63,0.03058449]
[1738201691129,4.2615,234.67,234.63,0.03058449]
[1738201691730,4.2617,234.66,234.63,0.03058449]
[1738201692228,4.2617,234.66,234.59,4.25265587]
[1738201692429,0.02754257,234.68,234.63,4.2621]
[1738201692626,1.4561,234.73,234.59,18.7996551]
[1738201692927,2.7346,234.74,234.59,18.7996551]
[1738201693128,1.373,234.74,234.6,1.3625]
[1738201693331,0.02874242,234.69,234.64,0.02887627]
[1738201693531,4.2595,234.78,234.68,4.2613]
[1738201693831,1.4174,234.81,234.67,18.7996551]
[1738201693832,0.02768969,234.69,234.67,18.7996551]
[1738201694126,1.4174,234.81,234.67,18.7996551]
[1738201694127,0.02916641,234.7,234.68,4.2613]
[1738201694426,4.2591,234.8,234.67,18.7996551]
[1738201694632,4.2591,234.8,234.73,4.2602]
[1738201694829,0.03056332,234.76,234.73,4.2602]
[1738201695133,0.03056332,234.76,234.74,0.03222967]
[1738201695329,0.03056332,234.76,234.74,4.2602]
[1738201696325,4.2578,234.88,234.73,0.02789296]
[1738201696530,2.7711,234.9,234.81,4.2589]
[1738201696731,7.0285,234.9,234.81,4.2589]
[1738201697237,2.7711,234.9,234.81,4.2589]
[1738201697731,0.03160711,234.88,234.83,0.02992099]
[1738201700131,0.03160711,234.88,234.86,4.258]
[1738201700631,0.03160711,234.88,234.84,4.2583]
[1738201700834,0.03160711,234.88,234.83,0.02992099]
[1738201701236,0.03160711,234.88,234.83,4.28842099]
[1738201702339,0.03160711,234.88,234.83,0.02992099]
[1738201702529,0.03160711,234.88,234.86,4.258]
[1738201706835,0.03160711,234.88,234.87,4.2578]
[1738201707038,0.03160711,234.88,234.83,0.02992099]
[1738201708140,4.2584,234.84,234.83,0.02992099]
[1738201709940,1.3862,234.87,234.83,0.02992099]
[1738201710141,4.2581,234.86,234.83,0.02992099]
[1738201710734,1.3862,234.87,234.83,0.02992099]
[1738201710939,0.03160711,234.88,234.83,0.02992099]
[1738201711144,0.03160711,234.88,234.83,18.82957609]
[1738201711543,0.03160711,234.88,234.87,4.2578]
[1738201712552,0.03160711,234.88,234.83,8.83263867]
[1738201713152,0.03160711,234.88,234.87,4.2578]
[1738201714350,2.7696,235.02,234.85,0.02795094]
[1738201714550,2.7696,235.02,234.87,18.7996551]
[1738201714744,18.7996551,235.0,234.84,1.3617]
[1738201714946,4.2564,234.95,234.84,1.3617]
[1738201715551,0.03168155,234.92,234.87,0.02721663]
[1738201716453,18.7996551,234.88,234.73,1.4066]
[1738201716658,2.8602,234.87,234.73,1.4066]
[1738201717055,18.7996551,234.84,234.64,1.4305]
[1738201717251,18.7996551,234.8,234.64,2.8371]
[1738201717453,0.0305013,234.76,234.72,0.03229001]
[1738201717653,4.26,234.75,234.72,0.03229001]
[1738201717951,0.0305013,234.76,234.72,0.03229001]
[1738201718152,4.2904013,234.76,234.72,0.03229001]
[1738201719349,0.0305013,234.76,234.72,0.03229001]
[1738201720052,4.2601,234.75,234.72,0.03229001]
[1738201720552,5.7314,234.75,234.72,0.03229001]
[1738201720757,1.4713,234.75,234.72,0.03229001]
[1738201721660,5.7314,234.75,234.72,0.03229001]
[1738201723061,1.4713,234.75,234.72,0.03229001]
[1738201723562,4.2603,234.74,234.72,0.03229001]
[1738201724455,1.4713,234.75,234.72,0.03229001]
[1738201726063,0.0305013,234.76,234.72,0.03229001]
[1738201726860,0.0305013,234.76,234.74,4.2601]
[1738201728966,4.182,234.87,234.73,1.366]
[1738201728967,8.44,234.87,234.73,1.366]
[1738201729156,4.182,234.87,234.73,1.366]
[1738201729666,4.2581,234.86,234.73,1.366]
[1738201730067,0.0327557,234.82,234.77,0.02966585]
[1738201731160,0.0327557,234.82,234.78,4.2594]
[1738201732571,0.0327557,234.82,234.77,0.02966585]
[1738201733472,18.7996551,235.02,234.79,18.7996551]
[1738201733670,1.373,235.01,234.83,18.7996551]
[1738201733867,4.2558,234.99,234.83,18.76091383]
[1738201734166,1.373,235.01,234.83,18.76091383]
[1738201734366,4.2563,234.96,234.9,4.2573]
[1738201734567,0.03028367,234.94,234.9,4.29001082]
[1738201735168,0.03028367,234.94,234.91,4.257]
[1738201736566,0.03028367,234.94,234.9,0.03271082]
[1738201736771,0.03028367,234.94,234.92,4.2568]
[1738201741175,0.03028367,234.94,234.93,4.2567]
[1738201742364,0.03028367,234.94,234.9,0.03271082]
[1738201742875,4.2568,234.93,234.9,0.03271082]
[1738201744074,0.03028367,234.94,234.9,0.03271082]
[1738201744075,4.257,234.92,234.9,0.03271082]
[1738201744476,0.03028367,234.94,234.9,0.03271082]
[1738201744675,4.2569,234.92,234.9,0.03271082]
[1738201744877,0.03028367,234.94,234.9,0.03271082]
[1738201745072,18.82993877,234.94,234.76,20.2433551]
[1738201745278,2.7792,234.93,234.76,1.4437]
[1738201745572,18.7996551,234.9,234.75,89.43538511]
[1738201746272,0.02870607,234.85,234.8,0.03195288]
[1738201747073,18.7996551,234.82,234.63,18.7996551]
[1738201747377,4.2599,234.76,234.68,4.2612]
[1738201747578,1.3358,234.81,234.61,2.8619]
[1738201747980,4.2598,234.77,234.67,4.2614]
[1738201748279,0.02793653,234.74,234.7,0.03265413]
[1738201750078,0.02793653,234.74,234.71,4.2606]
[1738201750376,0.02793653,234.74,234.7,0.03265413]
[1738201751580,0.02793653,234.74,234.72,4.2605]
[1738201754873,0.02793653,234.74,234.71,17.49681008]
[1738201755180,0.02793653,234.74,234.72,18.7996551]
[1738201755578,1.4506,234.85,234.72,18.7996551]
[1738201756680,1.4506,234.85,234.79,4.2592]
[1738201756881,0.02836839,234.81,234.79,4.2592]
[1738201758785,1.3879,234.92,234.8,18.7996551]
[1738201759482,1.4509,234.93,234.8,18.7996551]
[1738201759684,1.3879,235.0,234.8,18.7996551]
[1738201759983,0.0311996,234.89,234.84,18.82992231]
[1738201760184,2.7859,235.0,234.84,18.7996551]
[1738201760380,2.7859,235.0,234.84,0.02967156]
[1738201760381,0.03227132,234.89,234.84,0.02967156]
[1738201760684,4.2557,234.99,234.9,4.2573]
[1738201761077,0.02982627,234.97,234.92,0.0272376]
[1738201762784,0.02982627,234.97,234.95,4.2564]
[1738201766289,0.02982627,234.97,234.96,4.2562]
[1738201770890,4.254,235.09,234.92,18.8268927]
[1738201771090,18.7996551,235.12,234.92,18.7996551]
[1738201771282,4.2541,235.08,235.01,4.2553]
[1738201771987,0.03016424,235.07,235.02,0.02813186]
[1738201772188,0.03016424,235.07,235.02,4.28323186]
[1738201774194,11.72920731,235.06,235.02,0.02813186]
[1738201774485,13.14620731,235.06,235.02,0.02813186]
[1738201774685,4.2547,235.05,235.02,0.02813186]
[1738201775591,4.2547,235.05,234.86,1.3454]
[1738201775592,11.72920731,235.03,234.86,1.3454]
[1738201775787,11.72920731,234.97,234.82,11.72920731]
[1738201776392,11.72920731,235.0,234.89,4.2573]
[1738201776593,0.0319799,234.92,234.89,4.2573]
[1738201776788,18.7841505,235.0,234.89,4.2573]
[1738201776985,0.02822079,234.93,234.89,4.2574]
[1738201777494,0.02822079,234.93,234.88,0.03049008]
[1738201778396,4.257,234.92,234.88,0.03049008]
[1738201778791,0.02822079,234.93,234.88,0.03049008]
[1738201779695,4.2572,234.91,234.88,0.03049008]
[1738201780001,0.02822079,234.93,234.88,0.03049008]
[1738201780292,1.4034,234.92,234.88,0.03049008]
[1738201780595,0.02822079,234.93,234.88,0.03049008]
[1738201780797,0.02822079,234.93,234.91,4.2569]
[1738201782290,0.02822079,234.93,234.89,4.2573]
[1738201782799,0.02822079,234.93,234.88,0.03049008]
[1738201783003,0.02822079,234.93,234.92,4.2569]
[1738201783501,0.02822079,234.93,234.88,4.28799008]
[1738201783707,0.02822079,234.93,234.88,0.03049008]
[1738201783910,18.7841505,234.92,234.73,27.76493122]
[1738201784206,4.2581,234.86,234.73,18.7841505]
[1738201784407,2.8398,234.91,234.73,18.7841505]
[1738201785306,0.03066489,234.86,234.81,0.03143412]
[1738201786102,0.03066489,234.86,234.81,4.29033412]
[1738201786303,0.03066489,234.86,234.81,0.03143412]
[1738201786901,0.03066489,234.86,234.82,4.2587]
[1738201787300,0.03066489,234.86,234.81,0.03143412]
[1738201788210,0.03066489,234.86,234.82,4.2587]
[1738201789308,0.03066489,234.86,234.83,4.2586]
[1738201791011,0.03066489,234.86,234.84,4.2584]
[1738201791310,0.03066489,234.86,234.81,0.03143412]
[1738201792710,0.03066489,234.86,234.82,4.2587]
[1738201793009,0.03066489,234.86,234.81,0.03143412]
[1738201793612,0.03066489,234.86,234.85,4.2582]
[1738201796119,0.03066489,234.86,234.73,18.7841505]
[1738201796520,0.03066489,234.86,234.76,11.74682002]
[1738201796717,1.4696,234.9,234.85,4.258]
[1738201797315,1.50202786,234.9,234.85,4.28849625]
[1738201797617,1.50202786,234.9,234.86,4.2579]
[1738201798018,1.50202786,234.9,234.85,0.03049625]
[1738201798218,0.03242786,234.9,234.85,0.03049625]
[1738201799018,0.03242786,234.9,234.89,4.2575]
[1738201799525,0.03242786,234.9,234.88,4.2577]
[1738201800225,0.03242786,234.9,234.89,4.2575]
[1738201804324,0.03242786,234.9,234.88,4.2576]
[1738201804720,0.03242786,234.9,234.85,0.03049625]
[1738201805424,0.03242786,234.9,234.86,4.2579]
[1738201805723,0.03242786,234.9,234.85,0.03049625]
[1738201806226,0.03242786,234.9,234.89,4.2575]
[1738201810123,11.74682002,235.03,234.92,4.2568]
[1738201810327,11.74682002,235.03,234.88,11.74682002]
[1738201811328,0.03067731,234.98,234.93,4.28819784]
[1738201811524,16.00232002,235.0,234.85,11.74682002]
[1738201811829,0.03226354,234.98,234.93,0.03223401]
[1738201812427,0.03226354,234.98,234.94,4.2566]
[1738201812627,0.03226354,234.98,234.93,0.03223401]
[1738201812930,0.03226354,234.98,234.97,4.256]
[1738201814737,11.74682002,235.09,234.95,11.74682002]
[1738201814928,11.74682002,235.12,235.04,4.2546]
[1738201815323,16.00072002,235.09,234.95,11.74682002]
[1738201815732,16.00072002,235.09,235.02,4.2549]
[1738201815923,0.02919684,235.04,235.02,4.2549]
[1738201816432,0.02919684,235.04,235.0,0.02883022]
[1738201816735,0.02919684,235.04,235.03,4.2549]
[1738201821840,1.4293,235.18,235.0,0.02883022]
[1738201821841,13.17612002,235.18,235.01,11.74682002]
[1738201822039,4.2524,235.17,235.1,4.2536]
[1738201823037,0.02836586,235.16,235.12,4.2532]
[1738201823334,11.74682002,235.28,235.13,11.74682002]
[1738201823539,0.02916534,235.16,235.13,11.74682002]
[1738201823838,11.74682002,235.22,235.07,11.74682002]
[1738201824042,0.02832559,235.17,235.12,0.02732664]
[1738201824235,0.02832559,235.17,235.12,4.28052664]
[1738201826839,0.02832559,235.17,235.13,4.2531]
[1738201827942,0.02832559,235.17,235.15,4.2527]
[1738201828142,0.02832559,235.17,235.12,0.02732664]
[1738201828442,0.02832559,235.17,235.13,4.2531]
[1738201829743,2.7272,235.31,235.24,4.2511]
[1738201829946,11.74682002,235.38,235.24,11.74682002]
[1738201830342,4.2491,235.36,235.28,4.2504]
[1738201830542,11.74682002,235.38,235.24,11.74682002]
[1738201830742,0.02953946,235.34,235.3,0.03010221]
[1738201831644,0.02953946,235.34,235.31,11.74682002]
[1738201832045,17.66277344,235.46,235.31,11.74682002]
[1738201832248,20.42297344,235.46,235.31,11.74682002]
[1738201832438,20.42297344,235.46,235.34,11.74682002]
[1738201832647,47.10072917,235.47,235.39,4.2484]
[1738201832948,4.2466,235.5,235.39,4.2484]
[1738201833336,0.03246029,235.45,235.41,0.02782458]
[1738201834242,11.77928031,235.45,235.41,0.02782458]
[1738201834646,16.02668031,235.45,235.41,0.02782458]
[1738201834846,0.03246029,235.45,235.41,0.02782458]
[1738201837251,11.77928031,235.45,235.41,0.02782458]
[1738201837448,4.2478,235.43,235.41,0.02782458]
[1738201837645,11.74682002,235.42,235.28,11.74682002]
[1738201837845,4.2492,235.35,235.26,4.2506]
[1738201838041,1.38,235.42,235.22,11.74682002]
[1738201838251,11.74682002,235.39,235.22,11.74682002]
[1738201838550,13.12682002,235.42,235.25,11.74682002]
[1738201838746,13.12682002,235.42,235.2,11.74682002]
[1738201838747,13.12682002,235.42,235.28,11.74682002]
[1738201838947,0.03162622,235.36,235.31,0.02976236]
[1738201839756,4.28062622,235.36,235.31,0.02976236]
[1738201840554,0.03162622,235.36,235.31,0.02976236]
[1738201840956,11.74682002,235.32,235.15,11.74682002]
[1738201841153,1.4604,235.31,235.15,11.74682002]
[1738201841755,4.251,235.25,235.16,4.2525]
[1738201841959,2.8382,235.31,235.15,11.74682002]
[1738201842163,0.02747215,235.23,235.18,11.77892824]
[1738201842855,0.02747215,235.23,235.18,16.03112824]
[1738201843058,0.02747215,235.23,235.21,11.74682002]
[1738201844054,0.02747215,235.23,235.21,15.99842002]
[1738201844254,13.14492002,235.38,235.21,11.74682002]
[1738201844461,14.52142002,235.38,235.24,11.74682002]
[1738201844957,4.2493,235.35,235.26,4.2507]
[1738201845155,14.52142002,235.38,235.26,4.2507]
[1738201845556,0.02967509,235.34,235.3,0.0306938]
[1738201847962,4.2497,235.32,235.3,0.0306938]
[1738201849762,4.2502,235.3,235.22,4.2514]
[1738201850159,4.2502,235.3,235.23,4.2513]
[1738201851153,0.02897154,235.29,235.24,0.0307652]
[1738201851354,4.27937154,235.29,235.24,0.0307652]
[1738201851562,0.02897154,235.29,235.24,0.0307652]
[1738201851755,0.02897154,235.29,235.1,2.88]
[1738201851756,0.02897154,235.29,235.01,10.66957241]
[1738201851958,0.02897154,235.29,234.69,164.0]
[1738201851959,4.2554,235.01,234.86,176.35047295]
[1738201852158,18.71442845,235.07,234.86,172.09257295]
[1738201852464,4.2556,235.0,234.86,176.35047295]
[1738201852659,18.71442845,235.01,234.86,172.09257295]
[1738201853055,2.8441,235.06,234.95,20.17613193]
[1738201853056,18.71442845,234.97,234.95,20.17613193]
[1738201853858,18.71442845,234.97,234.81,1.4325]
[1738201854069,18.71442845,234.93,234.83,4.2586]
[1738201854265,18.71442845,234.89,234.87,0.030821]
[1738201854472,18.71442845,234.89,234.74,4.2602]
[1738201854771,18.71442845,234.84,234.73,1.3882]
[1738201854961,18.71442845,234.88,234.73,1.3882]
[1738201855162,18.71442845,234.88,234.73,5.6485]
[1738201855364,18.71442845,234.84,234.73,5.6485]
[1738201855569,18.71442845,234.84,234.81,0.02752906]
[1738201855768,18.71442845,234.84,234.73,5.6485]
[1738201855967,18.71442845,234.84,234.8,0.02804569]
[1738201857763,18.71442845,234.84,234.74,4.2601]
[1738201857764,18.71442845,234.84,234.75,4.2599]
[1738201857965,0.03150757,234.85,234.73,1.3882]
[1738201859272,0.03150757,234.85,234.79,4.2592]
[1738201859467,0.03150757,234.85,234.73,1.3882]
[1738201859869,0.03150757,234.85,234.78,4.2594]
[1738201860271,0.03150757,234.85,234.76,4.2597]
[1738201860470,0.03150757,234.85,234.73,1.3882]
[1738201860872,18.74593602,234.85,234.66,2.3276]
[1738201861174,18.71442845,234.81,234.66,2.3276]
[1738201861376,0.03076983,234.78,234.71,4.2606]
[1738201861570,0.03076983,234.78,234.66,2.3276]
[1738201862069,0.03076983,234.78,234.72,4.2605]
[1738201863478,0.03076983,234.78,234.66,2.3276]
[1738201863775,0.03076983,234.78,234.73,4.2603]
[1738201864169,0.03076983,234.78,234.66,2.3276]
[1738201864370,0.03076983,234.78,234.76,4.2597]
[1738201864575,1.3858,234.9,234.72,18.71442845]
[1738201864873,1.3858,234.9,234.81,4.2588]
[1738201865073,1.3858,234.9,234.72,18.71442845]
[1738201865270,18.71442845,234.82,234.66,91.79732713]
[1738201865775,0.02888411,234.76,234.72,0.02686806]
[1738201866574,18.71442845,234.74,234.52,18.71442845]
[1738201866770,1.4635,234.73,234.53,0.752112]
[1738201866980,1.4635,234.73,234.56,18.71442845]
[1738201867977,0.02995351,234.67,234.56,18.71442845]
[1738201869078,0.02995351,234.67,234.59,4.2629]
[1738201869279,0.02995351,234.67,234.56,18.71442845]
[1738201870183,0.02995351,234.67,234.66,4.2616]
[1738201871481,1.4071,234.81,234.64,18.71442845]
[1738201871679,1.403,234.82,234.77,4.2595]
[1738201872678,1.403,234.82,234.77,4.28992355]
[1738201872886,1.43112366,234.82,234.77,4.28992355]
[1738201873486,1.43112366,234.82,234.77,0.03042355]
[1738201873782,20.14555211,234.82,234.77,0.03042355]
[1738201873987,1.3509,234.81,234.77,0.03042355]
[1738201874183,18.71442845,234.78,234.74,4.2601]
[1738201874386,18.71442845,234.78,234.6,18.71442845]
[1738201875297,18.71442845,234.74,234.58,1.3542]
[1738201875485,0.03143909,234.71,234.58,1.3542]
[1738201875789,18.71442845,234.7,234.57,89.50313365]
[1738201876492,0.02998106,234.66,234.57,89.50313365]
[1738201876790,0.02998106,234.66,234.52,20.06862845]
[1738201876791,0.02998106,234.66,234.61,4.2624]
[1738201876980,18.74440951,234.66,234.52,1.3542]
[1738201877187,18.74440951,234.66,234.6,4.2627]
[1738201877583,18.74440951,234.66,234.49,2.8037]
[1738201878081,0.03217764,234.6,234.52,4.2641]
[1738201878287,0.03217764,234.6,234.49,2.8037]
[1738201879089,0.03217764,234.6,234.59,4.2629]
[1738201880991,0.03217764,234.6,234.49,2.8037]
[1738201881193,0.03217764,234.6,234.51,18.71442845]
[1738201881884,18.71442845,234.74,234.51,18.71442845]
[1738201882387,18.71442845,234.7,234.63,4.2621]
[1738201882792,18.71442845,234.7,234.49,2.8037]
[1738201882993,18.71442845,234.74,234.69,4.2611]
[1738201883393,18.74651343,234.74,234.69,4.2611]
[1738201883697,18.74651343,234.74,234.69,4.29152942]
[1738201884288,18.74651343,234.74,234.69,0.03042942]
[1738201884484,18.71442845,234.7,234.49,2.8037]
[1738201884892,22.97542845,234.7,234.49,2.8037]
[1738201885191,18.71442845,234.7,234.49,2.8037]
[1738201885695,0.02831177,234.62,234.49,2.8037]
[1738201886195,0.02831177,234.62,234.61,4.2626]
[1738201891897,5.81960216,234.67,234.66,4.2616]
[1738201893299,5.81960216,234.67,234.64,0.03017356]
[1738201893898,18.74483889,234.69,234.64,0.03017356]
[1738201894396,0.03041044,234.69,234.64,0.03017356]
[1738201895298,0.03041044,234.69,234.66,4.2616]
[1738201896295,0.03041044,234.69,234.64,0.03017356]
[1738201897202,0.03041044,234.69,234.67,4.2613]
[1738201897500,0.03041044,234.69,234.64,0.03017356]
[1738201898194,0.03041044,234.69,234.68,4.2613]
[1738201900104,4.29171044,234.69,234.64,0.03017356]
[1738201900306,18.74483889,234.69,234.64,0.03017356]
[1738201900602,11.77013763,234.67,234.64,0.03017356]
[1738201901595,11.77013763,234.67,234.57,1.3539]
[1738201902601,4.2613,234.68,234.57,1.3539]
[1738201903501,4.2613,234.68,234.62,4.2623]
[1738201903902,4.2619,234.65,234.56,4.2634]
[1738201904103,4.2619,234.65,234.5,1.3985]
[1738201904406,4.263,234.59,234.52,4.2641]
[1738201904803,0.02866838,234.58,234.52,4.2641]
[1738201905702,0.02866838,234.58,234.53,4.264]
[1738201905899,0.02866838,234.58,234.49,1.3995]
[1738201906407,0.02866838,234.58,234.57,4.2633]
[1738201908509,5.81960216,234.66,234.63,4.2621]
[1738201908909,1.3803,234.7,234.63,4.2621]
[1738201909111,23.27840866,234.74,234.58,18.83433866]
[1738201909310,23.27840866,234.74,234.62,18.83433866]
[1738201909613,23.27840866,234.74,234.66,0.03057002]
[1738201909614,0.03182649,234.7,234.66,0.03057002]
[1738201910605,0.03182649,234.7,234.69,4.2611]
[1738201912217,0.03182649,234.7,234.66,0.03057002]
[1738201913815,0.03182649,234.7,234.68,4.2612]
[1738201916718,4.3212,234.82,234.66,0.03057002]
[1738201916918,4.3212,234.82,234.63,4.2126]
[1738201917309,18.83433866,234.8,234.63,4.2126]
[1738201917713,4.3212,234.82,234.63,4.2126]
[1738201917920,0.0284999,234.74,234.69,0.03199835]
[1738201918716,0.0284999,234.74,234.7,4.2608]
[1738201918918,0.0284999,234.74,234.69,0.03199835]
[1738201919118,0.0284999,234.74,234.69,18.86633701]
[1738201919314,0.0284999,234.74,234.73,4.2604]
[1738201919523,0.0284999,234.74,234.69,0.03199835]
[1738201921226,0.0284999,234.74,234.69,4.29289835]
[1738201921823,0.0284999,234.74,234.69,0.03199835]
[1738201922026,0.0284999,234.74,234.56,1.4516]
[1738201922225,18.83433866,234.72,234.56,1.4516]
[1738201922426,4.2617,234.66,234.58,4.2629]
[1738201922729,4.1698,234.71,234.55,9.35943326]
[1738201923323,0.03184006,234.65,234.61,0.02772641]
[1738201924029,0.03184006,234.65,234.63,4.2621]
[1738201927330,8.5168,234.79,234.61,18.86206507]
[1738201927529,4.2574,234.79,234.74,4.2602]
[1738201927824,4.2574,234.79,234.61,18.83433866]
[1738201928225,4.2574,234.79,234.66,4.2616]
[1738201928526,0.03071217,234.75,234.7,0.02765584]
[1738201928725,0.03071217,234.75,234.73,4.2602]
[1738201928925,0.03071217,234.75,234.7,0.02765584]
[1738201929327,0.03071217,234.75,234.73,4.2603]
[1738201929930,0.03071217,234.75,234.71,4.2606]
[1738201930230,0.03071217,234.75,234.7,0.02765584]
[1738201930825,0.03071217,234.75,234.73,4.2603]
[1738201932725,1.217e-05,234.75,234.73,4.2603]
[1738201933627,1.217e-05,234.75,234.71,4.2606]
[1738201933834,1.217e-05,234.75,234.7,0.02765584]
[1738201937234,1.217e-05,234.75,234.7,4.28855584]
[1738201937434,1.217e-05,234.75,234.7,0.02765584]
[1738201937635,4.26011217,234.75,234.7,0.02765584]
[1738201937934,1.217e-05,234.75,234.7,0.02765584]
[1738201939438,1.217e-05,234.75,234.74,4.2602]
[1738201941436,1.217e-05,234.75,234.7,0.02765584]
[1738201941637,1.217e-05,234.75,234.72,4.2604]
[1738201942739,1.217e-05,234.75,234.73,4.2603]
[1738201943136,1.217e-05,234.75,234.7,0.02765584]
[1738201944336,1.217e-05,234.75,234.74,4.2602]
[1738201944539,1.217e-05,234.75,234.65,20.18543866]
[1738201945337,1.217e-05,234.75,234.74,4.2602]
[1738201948843,4.3551,234.9,234.73,18.83433866]
[1738201949147,4.3551,234.9,234.77,18.83433866]
[1738201949940,4.3551,234.9,234.81,0.02769993]
[1738201949941,0.02857415,234.86,234.81,0.02769993]
[1738201953243,0.02857415,234.86,234.83,4.2584]
[1738201953947,0.02857415,234.86,234.81,0.02769993]
[1738201954651,0.02857415,234.86,234.81,4.28659993]
[1738201955451,4.28657415,234.86,234.81,0.02769993]
[1738201955652,0.02857415,234.86,234.81,0.02769993]
[1738201956749,0.02857415,234.86,234.85,4.2582]
[1738201957854,0.02857415,234.86,234.84,4.2584]
[1738201958451,0.02857415,234.86,234.81,0.02769993]
[1738201958656,0.02857415,234.86,234.83,4.2585]
[1738201959055,0.02857415,234.86,234.81,0.02769993]
[1738201959753,0.02857415,234.86,234.85,4.2582]
[1738201961250,0.02857415,234.86,234.83,4.2585]
[1738201961653,0.02857415,234.86,234.81,0.02769993]
[1738201961953,4.2582,234.85,234.81,0.02769993]
[1738201962756,0.02857415,234.86,234.81,0.02769993]
[1738201963058,0.02857415,234.86,234.69,11.74921016]
[1738201963059,11.74921016,234.84,234.69,11.74921016]
[1738201963460,4.2587,234.83,234.77,4.2595]
[1738201963659,11.74921016,234.87,234.72,11.74921016]
[1738201964059,0.02740585,234.82,234.72,11.74921016]
[1738201964362,0.02740585,234.82,234.77,0.03127561]
[1738201964962,0.02740585,234.82,234.78,4.2593]
[1738201965167,0.02740585,234.82,234.77,0.03127561]
[1738201966862,0.02740585,234.82,234.81,4.2589]
[1738201967763,0.02740585,234.82,234.81,4.21439773]
[1738201968359,5.85e-06,234.82,234.81,15.96360789]
[1738201968659,4.2564,234.95,234.81,11.74921016]
[1738201968858,4.2683,234.96,234.81,11.74921016]
[1738201969260,4.2566,234.94,234.88,4.2576]
[1738201969664,0.03254329,234.93,234.89,0.03048882]
[1738201970056,11.74921016,234.91,234.89,0.03048882]
[1738201970460,4.2578,234.88,234.82,4.2586]
[1738201970863,4.2578,234.88,234.75,11.74921016]
[1738201971061,11.74921016,234.91,234.68,1.4301]